bitfinex/quotes_SOLUSD_20250313
["timestamp","ask_amount","ask_price","bid_price","bid_amount"]
[1741846943926,0.063,123.77,123.76,24.38450838]
[1741846947296,0.063,123.77,123.76,32.46460838]
[1741846947704,0.063,123.77,123.76,24.38450838]
[1741846951325,0.063,123.77,123.76,133.41425724]
[1741846951616,0.063,123.77,123.76,175.08308876]
[1741846952198,0.063,123.77,123.76,181.47388876]
[1741846952599,0.063,123.77,123.76,493.47388876]
[1741846953025,0.063,123.77,123.76,493.18956562]
[1741846953324,0.063,123.8,123.76,493.47388876]
[1741846953528,0.063,123.8,123.79,44.38450838]
[1741846953823,0.063,123.8,123.79,143.68450838]
[1741846955509,0.063,123.8,123.79,171.90758978]
[1741846955825,0.063,123.8,123.79,170.69658038]
[1741846956507,0.063,123.83,123.82,20.0]
[1741846956715,0.063,123.83,123.82,409.29374562]
[1741846956915,0.063,123.83,123.82,408.08298876]
[1741846957314,0.063,123.83,123.82,383.69848038]
[1741846957614,0.063,123.83,123.82,383.41415724]
[1741846957817,0.063,123.83,123.82,347.76450838]
[1741846958017,0.063,123.83,123.82,284.87035724]
[1741846958747,0.063,123.83,123.82,276.79415724]
[1741846959103,0.063,123.9,123.89,20.0]
[1741846959324,0.03,123.92,123.89,152.62415724]
[1741846959509,0.03,123.92,123.89,128.23964886]
[1741846959720,0.03,123.92,123.9,24.38450838]
[1741846959914,0.03,123.92,123.9,31.70450838]
[1741846960739,0.03,123.92,123.91,24.38450838]
[1741846961509,0.03,123.92,123.9,31.70450838]
[1741846961710,0.03,123.92,123.88,1.21027351]
[1741846961922,0.03,123.92,123.88,24.38450838]
[1741846962119,24.41450838,123.92,123.87,89.59]
[1741846964419,0.03,123.92,123.87,113.97450838]
[1741846965933,32.48440838,123.92,123.87,89.59]
[1741846966140,32.48440838,123.92,123.87,113.97450838]
[1741846966441,0.03,123.92,123.88,24.38450838]
[1741846968940,0.03,123.92,123.9,24.38450838]
[1741846969838,0.03,123.92,123.89,24.38450838]
[1741846970541,0.03,123.92,123.88,24.38450838]
[1741846970918,32.48420838,123.92,123.88,7.32]
[1741846972437,1.6059,123.91,123.88,7.32]
[1741846976416,6.1428,123.92,123.88,39.77660838]
[1741846976737,0.03,123.92,123.88,39.77660838]
[1741846977130,0.03,123.92,123.89,24.38450838]
[1741846977948,0.03,123.92,123.9,24.38450838]
[1741846979127,0.03,123.92,123.9,32.45530838]
[1741846980229,0.03,123.92,123.9,24.38450838]
[1741846980750,0.03,123.92,123.89,106.65450838]
[1741846981448,0.03,123.92,123.9,24.38450838]
[1741846983246,0.03,123.92,123.91,24.38450838]
[1741846984234,0.03,123.92,123.91,44.38450838]
[1741846984944,0.03,123.92,123.91,20.0]
[1741846985252,0.03,123.92,123.9,24.38450838]
[1741846986334,0.03,123.92,123.9,31.70450838]
[1741846987151,8.0997,123.92,123.89,89.59]
[1741846987350,8.0997,123.92,123.89,7.32]
[1741846988259,24.38450838,123.91,123.87,0.063]
[1741846988424,24.38450838,123.89,123.87,0.063]
[1741846988630,24.66883152,123.88,123.87,0.063]
[1741846989258,32.74113152,123.88,123.87,0.063]
[1741846990427,51.39078038,123.88,123.87,0.063]
[1741846990626,51.39078038,123.88,123.87,0.0001]
[1741846991049,0.28432314,123.86,123.8,106.65450838]
[1741846991345,8.0749,123.84,123.8,24.38450838]
[1741846991650,24.66883152,123.86,123.8,24.38450838]
[1741846992047,32.74263152,123.86,123.81,24.38450838]
[1741846992549,32.74263152,123.86,123.8,24.38450838]
[1741846993632,32.74263152,123.86,123.8,32.46190838]
[1741846994252,32.74263152,123.86,123.81,24.38450838]
[1741846994641,32.74263152,123.86,123.8,32.46190838]
[1741846994953,24.38450838,123.85,123.79,327.51450838]
[1741846995131,24.38450838,123.85,123.79,245.24450838]
[1741846995935,24.38450838,123.85,123.8,24.38450838]
[1741846996134,32.74263152,123.86,123.8,24.38450838]
[1741846998549,24.38450838,123.85,123.8,24.38450838]
[1741846998941,8.0749,123.84,123.8,24.38450838]
[1741847000459,8.0745,123.85,123.8,24.44750838]
[1741847000861,8.0745,123.85,123.8,32.52490838]
[1741847001159,0.28432314,123.86,123.81,24.38450838]
[1741847001654,8.35792314,123.86,123.81,24.38450838]
[1741847001954,0.28432314,123.86,123.82,24.38450838]
[1741847002145,8.0732,123.87,123.83,24.38450838]
[1741847002350,32.59916995,123.88,123.83,24.38450838]
[1741847003256,32.59916995,123.88,123.82,24.38450838]
[1741847005161,24.66883152,123.87,123.81,24.38450838]
[1741847005738,24.38450838,123.86,123.81,24.38450838]
[1741847006044,0.28432314,123.87,123.8,24.44750838]
[1741847006045,24.38450838,123.85,123.8,24.44750838]
[1741847006659,8.0749,123.84,123.8,0.063]
[1741847008059,8.0749,123.84,123.8,24.44750838]
[1741847008365,24.38450838,123.85,123.8,24.44750838]
[1741847008366,8.0745,123.85,123.8,24.44750838]
[1741847008550,8.0745,123.85,123.81,24.38450838]
[1741847008951,32.45740838,123.87,123.81,32.46120838]
[1741847009142,32.45740838,123.87,123.81,24.38450838]
[1741847009342,32.45740838,123.87,123.81,32.46130838]
[1741847010062,24.38450838,123.86,123.81,24.38450838]
[1741847011166,8.0742,123.85,123.81,24.38450838]
[1741847011368,8.0742,123.85,123.8,106.71750838]
[1741847013367,8.0742,123.85,123.81,24.38450838]
[1741847013957,8.0742,123.85,123.8,106.71750838]
[1741847014369,8.0742,123.85,123.8,82.333]
[1741847014666,8.0742,123.85,123.8,106.71750838]
[1741847015167,32.02780838,123.84,123.8,82.333]
[1741847015357,24.66883152,123.83,123.8,82.333]
[1741847015559,24.52666995,123.83,123.8,82.333]
[1741847015746,24.52666995,123.83,123.8,0.063]
[1741847016263,0.14216157,123.82,123.8,0.063]
[1741847016465,24.52666995,123.82,123.8,0.063]
[1741847016867,0.14216157,123.81,123.8,0.063]
[1741847017073,24.66883152,123.81,123.8,0.063]
[1741847017571,32.74563152,123.81,123.8,0.063]
[1741847018669,8.36112314,123.81,123.8,0.063]
[1741847020154,0.28432314,123.83,123.8,0.063]
[1741847020366,7.6433,123.84,123.8,24.44750838]
[1741847020965,7.6433,123.84,123.8,0.063]
[1741847021275,40.10290838,123.84,123.8,0.063]
[1741847021575,7.6433,123.84,123.8,24.44750838]
[1741847021768,7.6433,123.84,123.8,0.063]
[1741847021979,40.10290838,123.84,123.8,0.063]
[1741847022158,43.31848038,123.83,123.8,0.063]
[1741847022365,24.38450838,123.81,123.8,0.063]
[1741847022672,24.66883152,123.81,123.8,0.063]
[1741847023379,32.74563152,123.81,123.8,0.063]
[1741847029081,8.36112314,123.81,123.8,0.063]
[1741847030167,32.46090838,123.82,123.8,0.063]
[1741847030374,8.0764,123.82,123.8,0.063]
[1741847030681,32.46090838,123.82,123.8,0.063]
[1741847033483,0.28432314,123.81,123.8,0.063]
[1741847034481,34.51944241,123.81,123.8,0.063]
[1741847035377,42.59624241,123.81,123.8,0.0001]
[1741847036287,51.36992956,123.81,123.8,0.0001]
[1741847042184,71.56212956,123.81,123.74,24.42215756]
[1741847042387,24.35915756,123.78,123.74,0.063]
[1741847042697,0.28432314,123.78,123.74,0.063]
[1741847043807,0.28432314,123.8,123.75,24.35915756]
[1741847044089,8.36182314,123.8,123.75,24.35915756]
[1741847044300,32.7209807,123.8,123.75,24.35915756]
[1741847044698,32.7209807,123.8,123.74,24.42215756]
[1741847045099,32.7209807,123.8,123.75,24.35915756]
[1741847045489,32.7209807,123.8,123.74,32.50335756]
[1741847045801,32.7209807,123.8,123.74,24.42215756]
[1741847046204,24.35915756,123.79,123.74,24.42215756]
[1741847046409,28.55562314,123.8,123.74,0.063]
[1741847046410,24.35915756,123.78,123.74,0.063]
[1741847046608,24.35915756,123.76,123.74,0.063]
[1741847047479,8.0808,123.75,123.74,0.063]
[1741847047907,8.0801,123.76,123.74,0.063]
[1741847049295,8.0788,123.78,123.74,0.063]
[1741847049497,8.0788,123.78,123.74,24.42215756]
[1741847049802,32.43795756,123.78,123.74,0.063]
[1741847049994,0.28432314,123.77,123.74,0.063]
[1741847050201,24.35915756,123.76,123.74,0.063]
[1741847050506,0.28432314,123.77,123.74,0.063]
[1741847051408,24.6434807,123.77,123.74,0.063]
[1741847051588,8.0801,123.76,123.74,0.063]
[1741847052620,24.6434807,123.75,123.74,0.063]
[1741847052780,0.28432314,123.75,123.74,0.063]
[1741847053596,8.36512314,123.75,123.74,0.063]
[1741847054118,51.37392956,123.75,123.74,0.063]
[1741847055004,32.7242807,123.75,123.74,0.063]
[1741847055609,51.37392956,123.75,123.74,0.063]
[1741847056296,32.7242807,123.75,123.74,0.063]
[1741847057810,8.0808,123.75,123.74,0.063]
[1741847058201,32.43995756,123.75,123.74,0.063]
[1741847058402,23.68161477,123.75,123.74,0.063]
[1741847058603,42.61558677,123.75,123.74,0.063]
[1741847062319,42.61558677,123.75,123.74,0.0001]
[1741847062509,44.12868677,123.75,123.74,0.0001]
[1741847062709,18.933972,123.74,123.67,0.03]
[1741847063034,34.53478677,123.68,123.67,0.03]
[1741847063898,15.88513791,123.68,123.67,0.03]
[1741847064218,15.88513791,123.69,123.67,0.03]
[1741847064435,24.40042488,123.68,123.67,0.03]
[1741847064741,24.68474802,123.68,123.67,0.03]
[1741847065721,24.40042488,123.69,123.67,0.03]
[1741847066332,24.40042488,123.68,123.67,0.03]
[1741847066503,32.48542488,123.69,123.67,0.03]
[1741847066817,24.40042488,123.68,123.67,0.03]
[1741847067521,32.48572488,123.68,123.67,0.03]
[1741847069025,8.0853,123.68,123.67,0.03]
[1741847073711,8.0848,123.69,123.67,0.03]
[1741847073931,8.22626157,123.7,123.67,0.03]
[1741847074422,0.14216157,123.71,123.67,24.43042488]
[1741847074423,8.36792314,123.71,123.67,24.43042488]
[1741847074807,8.36722314,123.72,123.68,24.40042488]
[1741847075230,8.36722314,123.72,123.67,24.43042488]
[1741847075740,32.76764802,123.72,123.67,24.43042488]
[1741847075909,32.62548645,123.72,123.67,24.43042488]
[1741847077823,8.22506157,123.72,123.67,24.43042488]
[1741847078046,32.68462045,123.73,123.68,24.40042488]
[1741847078326,8.28419557,123.73,123.69,24.40042488]
[1741847078527,0.059734,123.73,123.71,24.40042488]
[1741847079325,0.059734,123.73,123.68,8.0851]
[1741847079629,0.059734,123.73,123.69,24.40042488]
[1741847080316,0.059734,123.73,123.7,24.40042488]
[1741847080710,0.059734,123.73,123.71,24.40042488]
[1741847082608,0.059734,123.73,123.7,31.72042488]
[1741847084329,0.059734,123.73,123.7,31.00464658]
[1741847084710,0.059734,123.73,123.71,15.60064658]
[1741847085232,0.059734,123.73,123.7,22.92064658]
[1741847085933,0.059734,123.73,123.7,7.32]
[1741847088339,8.141834,123.73,123.7,7.32]
[1741847089315,8.141834,123.73,123.7,22.92064658]
[1741847089520,0.059734,123.73,123.7,31.00464658]
[1741847089838,0.059734,123.73,123.71,15.60064658]
[1741847091525,0.059734,123.73,123.71,23.68384658]
[1741847091734,0.059734,123.73,123.7,82.27]
[1741847092132,0.059734,123.73,123.7,97.87064658]
[1741847092342,0.059734,123.73,123.71,15.60064658]
[1741847093041,0.059734,123.73,123.7,97.87064658]
[1741847093429,0.059734,123.73,123.71,15.60064658]
[1741847094739,0.059734,123.73,123.7,82.3]
[1741847094932,15.66038058,123.73,123.7,82.3]
[1741847095135,0.059734,123.73,123.7,82.3]
[1741847095648,8.0827,123.72,123.7,82.3]
[1741847095844,8.0827,123.72,123.7,0.03]
[1741847096527,15.60064658,123.71,123.7,0.03]
[1741847097851,23.68404658,123.71,123.7,0.03]
[1741847098227,8.0834,123.71,123.7,0.03]
[1741847099347,24.39062196,123.72,123.7,0.03]
[1741847099348,8.083,123.72,123.7,0.03]
[1741847100052,8.141934,123.73,123.7,0.03]
[1741847101949,32.53255596,123.73,123.7,0.03]
[1741847103155,8.141934,123.73,123.7,0.03]
[1741847103356,0.059734,123.73,123.7,24.42062196]
[1741847103559,0.059734,123.73,123.7,0.03]
[1741847104866,0.059734,123.73,123.7,24.42062196]
[1741847105734,0.059734,123.73,123.7,32.50452196]
[1741847106832,0.059734,123.73,123.71,24.39062196]
[1741847107137,0.059734,123.73,123.72,31.71062196]
[1741847108892,0.059734,123.73,123.72,39.79332196]
[1741847109746,0.059734,123.73,123.72,64.87637082]
[1741847110265,3.4e-05,123.73,123.72,164.46069396]
[1741847111363,3.4e-05,123.73,123.72,164.17637082]
[1741847113768,3.4e-05,123.73,123.72,31.71062196]
[1741847114284,3.4e-05,123.73,123.72,24.39062196]
[1741847114576,3.4e-05,123.73,123.71,7.3]
[1741847115355,3.4e-05,123.73,123.7,0.03]
[1741847115557,24.39062196,123.71,123.7,0.03]
[1741847117171,32.7583451,123.71,123.7,0.03]
[1741847118656,24.39062196,123.71,123.7,0.03]
[1741847119176,8.0834,123.71,123.7,0.03]
[1741847120076,32.7583451,123.71,123.7,0.03]
[1741847121582,51.40799396,123.71,123.7,0.0001]
[1741847127183,58.72799396,123.71,123.7,0.0001]
[1741847127390,20.28432314,123.68,123.67,0.0001]
[1741847127574,44.6749451,123.68,123.67,0.0001]
[1741847127880,71.40989396,123.68,123.67,0.0001]
[1741847128067,24.39062196,123.66,123.65,0.0001]
[1741847128379,24.53278353,123.66,123.65,0.0001]
[1741847129989,32.61938353,123.66,123.65,0.0001]
[1741847130692,24.39062196,123.67,123.65,0.0001]
[1741847130860,0.14216157,123.67,123.65,0.0001]
[1741847131863,24.53278353,123.67,123.65,0.0001]
[1741847132066,0.14216157,123.67,123.65,0.0001]
[1741847132280,32.61898353,123.67,123.65,0.0001]
[1741847136981,24.53278353,123.66,123.65,0.0001]
[1741847138160,32.61938353,123.66,123.65,0.0001]
[1741847139288,8.22876157,123.66,123.65,0.0001]
[1741847142168,0.14216157,123.66,123.65,0.0001]
[1741847142777,24.53278353,123.66,123.65,0.0001]
[1741847142986,32.61938353,123.66,123.65,0.0001]
[1741847144297,23.85139144,123.66,123.65,0.0001]
[1741847147193,15.68562987,123.67,123.65,0.0001]
[1741847147495,0.063,123.67,123.65,0.0001]
[1741847149290,0.063,123.67,123.65,23.71002987]
[1741847149489,0.063,123.67,123.65,0.0001]
[1741847151303,0.063,123.67,123.65,15.62272987]
[1741847153104,0.063,123.67,123.65,0.0001]
[1741847157104,15.62262987,123.66,123.65,0.0001]
[1741847157490,15.68562987,123.67,123.65,0.0001]
[1741847157689,23.77172987,123.67,123.65,0.0001]
[1741847161109,8.1491,123.67,123.65,0.0001]
[1741847161498,23.77172987,123.67,123.65,0.0001]
[1741847161813,8.1491,123.67,123.65,0.0001]
[1741847162908,0.063,123.67,123.65,0.0001]
[1741847164700,0.063,123.67,123.65,15.62272987]
[1741847165493,0.063,123.67,123.65,0.0001]
[1741847171715,0.063,123.67,123.66,15.62262987]
[1741847172925,0.063,123.67,123.66,23.70922987]
[1741847177704,0.063,123.67,123.66,25.23862987]
[1741847180033,0.063,123.67,123.66,43.88827873]
[1741847180728,0.063,123.67,123.66,126.18827873]
[1741847181330,0.063,123.67,123.66,132.69177873]
[1741847181533,3.4e-05,123.69,123.68,54.27227873]
[1741847182132,0.063,123.73,123.72,20.0]
[1741847182305,0.063,123.73,123.72,61.57227873]
[1741847182510,0.063,123.73,123.72,143.87227873]
[1741847183319,0.063,123.74,123.72,143.87227873]
[1741847183320,0.063,123.74,123.72,162.36839917]
[1741847183506,0.063,123.74,123.73,23.70472987]
[1741847184239,0.063,123.8,123.73,141.93870187]
[1741847184532,0.063,123.8,123.78,15.62262987]
[1741847184907,0.063,123.8,123.79,15.62262987]
[1741847185726,0.063,123.8,123.78,97.92262987]
[1741847185913,0.063,123.8,123.79,15.62262987]
[1741847186111,0.063,123.8,123.78,97.92262987]
[1741847187234,15.82779144,123.8,123.76,102.3]
[1741847187531,15.82779144,123.8,123.74,82.3]
[1741847187532,23.70142987,123.78,123.74,82.3]
[1741847188143,8.0781,123.79,123.75,15.62262987]
[1741847188438,8.0781,123.79,123.75,24.35797013]
[1741847188738,32.43607013,123.79,123.73,90.382]
[1741847188917,32.43607013,123.79,123.74,24.35797013]
[1741847189113,8.0781,123.79,123.75,24.35797013]
[1741847189934,0.03,123.78,123.75,24.35797013]
[1741847191018,0.03,123.78,123.77,24.35797013]
[1741847192646,0.03,123.78,123.77,32.43747013]
[1741847193235,0.03,123.78,123.77,51.08711899]
[1741847193933,0.03,123.78,123.77,133.38711899]
[1741847194122,0.03,123.78,123.77,445.38711899]
[1741847194921,0.03,123.78,123.77,133.38711899]
[1741847196739,0.03,123.78,123.77,150.38711899]
[1741847197542,0.063,123.8,123.79,20.0]
[1741847197734,0.063,123.8,123.79,143.65797013]
[1741847197933,0.063,123.8,123.79,455.65797013]
[1741847198244,0.063,123.8,123.79,463.73607013]
[1741847199341,0.063,123.8,123.79,151.73607013]
[1741847200430,0.063,123.8,123.77,82.3]
[1741847200635,24.35797013,123.79,123.75,7.3]
[1741847200838,24.35797013,123.78,123.74,7.3]
[1741847201855,24.35797013,123.77,123.74,0.063]
[1741847202436,8.0795,123.77,123.74,0.063]
[1741847203234,20.39946157,123.8,123.74,43.07061899]
[1741847203235,8.0781,123.79,123.74,43.07061899]
[1741847203440,32.43607013,123.79,123.74,0.063]
[1741847203639,24.35797013,123.78,123.74,0.063]
[1741847203938,24.42097013,123.8,123.75,24.35797013]
[1741847204138,0.063,123.8,123.75,24.35797013]
[1741847204543,0.063,123.8,123.75,32.43867013]
[1741847204858,24.42097013,123.8,123.75,24.35797013]
[1741847205039,24.42097013,123.8,123.74,24.42097013]
[1741847205953,24.42097013,123.8,123.74,32.50227013]
[1741847206147,24.42097013,123.8,123.74,24.42097013]
[1741847206754,24.35797013,123.79,123.74,24.42097013]
[1741847207144,24.35797013,123.79,123.74,106.72097013]
[1741847207753,24.5631317,123.8,123.74,114.80237013]
[1741847207953,24.35797013,123.79,123.74,114.80237013]
[1741847208150,24.35797013,123.79,123.74,106.72097013]
[1741847208350,0.20516157,123.8,123.74,106.72097013]
[1741847208539,24.5631317,123.8,123.74,114.80217013]
[1741847208951,0.20516157,123.8,123.75,24.35797013]
[1741847209152,24.42097013,123.8,123.74,90.4442]
[1741847209352,32.49847013,123.8,123.75,24.35797013]
[1741847209546,0.063,123.8,123.75,24.35797013]
[1741847209754,0.063,123.8,123.77,24.35797013]
[1741847209951,0.063,123.8,123.78,31.65797013]
[1741847210158,0.063,123.8,123.78,113.95797013]
[1741847210567,0.063,123.8,123.79,43.00761899]
[1741847211068,0.063,123.8,123.79,139.50391899]
[1741847211243,0.0001,123.8,123.79,164.08824213]
[1741847211443,0.0101,123.81,123.79,216.08824213]
[1741847211669,0.063,123.86,123.83,18.64964886]
[1741847211843,0.063,123.86,123.84,7.3]
[1741847212244,0.03,123.92,123.88,20.0]
[1741847212450,0.03,123.92,123.91,24.35797013]
[1741847212649,0.03,123.92,123.91,106.65797013]
[1741847213068,0.03,123.92,123.91,114.72827013]
[1741847214780,0.03,123.92,123.91,51.07791899]
[1741847215467,0.03,123.92,123.91,134.87222783]
[1741847215977,0.03,123.92,123.91,133.37791899]
[1741847217543,0.03,123.92,123.91,113.95797013]
[1741847217748,0.03,123.92,123.91,31.65797013]
[1741847218670,0.03,123.92,123.91,24.35797013]
[1741847218861,0.03,123.92,123.91,7.3]
[1741847219059,0.03,123.92,123.91,31.65797013]
[1741847219881,0.03,123.92,123.91,39.72827013]
[1741847220056,0.03,123.92,123.91,58.37791899]
[1741847220468,0.03,123.92,123.91,7.3]
[1741847220674,0.03,123.92,123.9,213.74]
[1741847221060,24.35797013,123.91,123.86,8.0735]
[1741847221262,24.35797013,123.9,123.85,122.03197013]
[1741847221876,24.35797013,123.91,123.86,24.35797013]
[1741847222050,0.03,123.92,123.88,24.35797013]
[1741847222247,0.03,123.92,123.89,24.35797013]
[1741847222673,0.03,123.92,123.88,24.35797013]
[1741847223456,24.38797013,123.92,123.87,106.65797013]
[1741847224454,24.35797013,123.91,123.87,82.3]
[1741847224773,32.45807013,123.92,123.87,114.73087013]
[1741847224981,32.45807013,123.92,123.87,106.65797013]
[1741847225184,24.35797013,123.9,123.87,82.3]
[1741847225356,24.35797013,123.89,123.87,82.3]
[1741847225561,24.5001317,123.91,123.86,24.35797013]
[1741847226457,0.03,123.9,123.86,8.0734]
[1741847226952,0.03,123.9,123.88,24.35797013]
[1741847227171,0.03,123.9,123.89,31.65797013]
[1741847227781,0.03,123.9,123.89,7.3]
[1741847228092,23.88797013,123.91,123.89,7.3]
[1741847228292,0.03,123.92,123.89,7.3]
[1741847229866,0.03,123.92,123.89,15.3715]
[1741847230062,0.03,123.92,123.91,24.35797013]
[1741847230265,0.03,123.94,123.91,143.5175482]
[1741847230582,0.03,123.94,123.93,63.00761899]
[1741847230762,0.03,123.94,123.93,152.60761899]
[1741847231587,0.03,123.94,123.93,27.3]
[1741847232158,0.03,123.94,123.9,31.65797013]
[1741847232476,0.03,123.94,123.9,7.3]
[1741847232888,0.03,123.94,123.9,31.65797013]
[1741847233194,0.03,123.94,123.91,24.35797013]
[1741847233986,0.03,123.94,123.9,39.72877013]
[1741847234170,0.03,123.94,123.9,31.65797013]
[1741847234372,0.03,123.94,123.9,46.172206]
[1741847234582,0.03,123.94,123.9,54.243106]
[1741847234772,0.03,123.94,123.91,38.872206]
[1741847234968,0.03,123.94,123.9,15.3709]
[1741847235184,0.03,123.94,123.9,46.172206]
[1741847235384,38.902206,123.94,123.9,7.3]
[1741847235588,38.872206,123.93,123.88,267.764406]
[1741847235765,0.14216157,123.93,123.88,228.8922]
[1741847235970,0.03,123.94,123.88,259.692206]
[1741847236286,38.902206,123.94,123.89,38.872206]
[1741847236582,46.970606,123.94,123.89,38.872206]
[1741847236786,0.03,123.94,123.9,38.872206]
[1741847237590,0.03,123.94,123.91,38.872206]
[1741847237789,0.03,123.94,123.92,7.3]
[1741847238196,0.03,123.94,123.92,54.241906]
[1741847238385,0.03,123.94,123.93,38.872206]
[1741847239469,0.03,123.94,123.92,7.3]
[1741847239782,0.03,123.94,123.92,54.241806]
[1741847240179,0.03,123.94,123.92,46.172206]
[1741847240694,38.902206,123.94,123.89,121.172206]
[1741847240891,38.872206,123.93,123.89,82.3]
[1741847241195,38.872206,123.92,123.89,7.3]
[1741847242095,46.942106,123.92,123.89,7.3]
[1741847242475,40.442406,123.93,123.89,7.3]
[1741847243193,40.442406,123.93,123.89,15.3714]
[1741847244694,1.5702,123.93,123.89,54.243606]
[1741847244892,0.03,123.94,123.9,38.872206]
[1741847245279,0.03,123.94,123.9,121.172206]
[1741847246091,0.03,123.94,123.9,82.3]
[1741847246092,46.970606,123.94,123.9,82.3]
[1741847246276,38.872206,123.93,123.9,82.3]
[1741847247791,38.872206,123.93,123.86,38.83364886]
[1741847247792,1.90832314,123.9,123.85,0.063]
[1741847247990,38.872206,123.86,123.85,0.063]
[1741847248375,39.01436757,123.86,123.85,0.063]
[1741847249578,47.08796757,123.86,123.85,0.063]
[1741847250493,53.40882914,123.86,123.85,0.063]
[1741847250690,72.058478,123.86,123.85,0.063]
[1741847250994,20.508572,123.85,123.74,221.6643]
[1741847251296,38.872206,123.8,123.75,57.52185486]
[1741847251518,38.872206,123.81,123.75,121.172206]
[1741847251676,39.01436757,123.82,123.76,38.872206]
[1741847251873,39.01436757,123.82,123.77,46.172206]
[1741847253379,38.872206,123.82,123.77,15.3795]
[1741847253572,38.872206,123.82,123.77,54.251706]
[1741847253776,39.15652914,123.83,123.77,54.251706]
[1741847253976,39.15652914,123.83,123.78,38.872206]
[1741847254497,0.14216157,123.83,123.78,38.872206]
[1741847254901,39.01436757,123.83,123.78,38.872206]
[1741847255399,38.872206,123.82,123.77,54.251706]
[1741847256601,47.09006757,123.83,123.77,54.251706]
[1741847256901,46.947906,123.83,123.77,15.3795]
[1741847257106,46.947906,123.83,123.77,54.251706]
[1741847257596,8.0757,123.83,123.77,54.251706]
[1741847257796,38.872206,123.83,123.78,46.950806]
[1741847258377,24.34324642,123.83,123.78,32.42184642]
[1741847258582,8.21656157,123.85,123.8,44.34324642]
[1741847258583,24.34324642,123.85,123.8,44.34324642]
[1741847258894,24.34324642,123.85,123.81,7.3]
[1741847259403,8.35722314,123.87,123.81,7.3]
[1741847259579,24.34324642,123.85,123.81,7.3]
[1741847259981,32.41794642,123.85,123.81,7.3]
[1741847260202,24.34324642,123.84,123.81,7.3]
[1741847261199,32.41834642,123.84,123.81,7.3]
[1741847261995,24.34324642,123.84,123.81,7.3]
[1741847262202,32.44784642,123.85,123.81,7.3]
[1741847263096,0.28432314,123.84,123.81,7.3]
[1741847263301,24.62756956,123.84,123.81,7.3]
[1741847263502,32.70256956,123.84,123.81,7.3]
[1741847266523,32.41824642,123.84,123.81,7.3]
[1741847267103,0.14216157,123.83,123.81,7.3]
[1741847267296,24.48540799,123.83,123.78,7.3]
[1741847267806,8.0762,123.82,123.78,7.3]
[1741847268305,32.41944642,123.82,123.78,7.3]
[1741847269802,31.41944642,123.82,123.78,7.3]
[1741847270000,7.0762,123.82,123.78,7.3]
[1741847270510,31.41944642,123.82,123.78,7.3]
[1741847270684,24.34324642,123.79,123.75,0.063]
[1741847271004,24.34324642,123.79,123.75,7.363]
[1741847271793,0.14216157,123.79,123.75,7.363]
[1741847271993,8.22056157,123.79,123.75,31.70624642]
[1741847272401,0.14216157,123.79,123.75,39.78694642]
[1741847273107,0.14216157,123.79,123.78,0.063]
[1741847274288,8.22026157,123.79,123.78,0.063]
[1741847275397,32.70566956,123.79,123.78,0.063]
[1741847275805,32.56350799,123.79,123.78,0.063]
[1741847279407,0.14216157,123.79,123.78,0.063]
[1741847281411,8.22026157,123.79,123.78,0.063]
[1741847282105,32.56350799,123.79,123.78,0.063]
[1741847282308,32.70566956,123.79,123.78,0.063]
[1741847283920,31.70566956,123.79,123.78,0.063]
[1741847285493,18.79181043,123.78,123.75,0.063]
[1741847285693,24.48540799,123.76,123.75,0.063]
[1741847285900,24.62756956,123.76,123.75,0.063]
[1741847286099,32.70766956,123.76,123.75,0.063]
[1741847287018,32.42294642,123.77,123.75,0.063]
[1741847287224,0.28432314,123.78,123.75,0.063]
[1741847287410,0.14216157,123.78,123.75,0.063]
[1741847287611,0.28432314,123.78,123.75,0.063]